Cogmind - Beta 12 @@@ ROGUE MODE // 2024.01.24 @ 08:23:45 Player: puppuppit Result: Destroyed by H-81 Overseer with Heavy Linear Accelerator Performance ------------- Evolutions (8) 4000 Regions Visited (25) 5000 Robots Destroyed (340) 1700 Value Destroyed (13876) 13876 Prototype IDs (76) 1520 Alien Tech Used (12) 2400 Bonus (24470) 24470 TOTAL SCORE: 52966 Bonus ------- Triggered High Security 500 Triggered Max Security 3000 High Alert Combat Kills 6130 Follower Combat Kills 1956 Entered DSFs 500 Aligned with FarCom 300 Met Zhirov 300 Met Warlord at Base 500 MAIN.C Attacked Warlord 500 Warlord Defense Kills 1316 Used Core Reset Matrix 3000 Met Warlord at Research 2000 Integrated Exoskeleton 5000 Friendly Fire -532 Cogmind --------- Core Integrity 0/1450 Matter 232/300 Energy 534/540 System Corruption 4% Temperature Cool (0) Movement Walking (30) Location -2/Section 7 Parts ------- > --- POWER (1) -------- Light Quantum Reactor > --- PROPULSION (3) --- Sigix Exoskeleton > --- UTILITY (3) ------ Advanced Heat Sink Advanced Visual Processing Unit Advanced Thermal Shield > --- WEAPON (2) ------- Sigix Sheargun (fused) Sigix Sheargun > --- INVENTORY (5) ---- Light Antimatter Reactor Matter Drive Peak State ------------ > --- POWER ------------ Light Quantum Reactor > --- PROPULSION ------- Sigix Exoskeleton > --- UTILITY ---------- Advanced Heat Sink Advanced Visual Processing Unit Advanced Signal Interpreter > --- WEAPON ----------- Sigix Sheargun Sigix Sheargun > --- INVENTORY -------- Light Antimatter Reactor Matter Drive Transdimensional Reconstructor Transdimensional Reconstructor [Rating: 203] Favorites ----------- Power Light Nuclear Core Engine Light Angular Momentum Engine Power Core Light Nuclear Core Reactor Light Antimatter Reactor Propulsion Antigrav System Leg Sigix Exoskeleton Wheel Wheel Hover Unit Antigrav System Flight Unit Improved Flight Unit Utility Advanced Targeting Computer Device Improved Cooling System Storage Small Storage Unit Processor Advanced Targeting Computer Hackware System Shield Protection Experimental Power Shielding Weapon Enhanced Gauss Cannon Energy Gun Vortex Rail Energy Cannon Heavy Phase Cannon Ballistic Gun Light Assault Rifle Ballistic Cannon Enhanced Gauss Cannon Launcher Micro-nuke Launcher Special Weapon Field Lobotomy Kit Build | -11 -10 -10 -9 -9 -9 -8 -8 -7 -7 -6 -5 -5 -5 -5 -4 -4 -4 -4 -4 -3 -3 -3 -2 -2 -2 ------- Run | Jun Mat Min Mat Min Exi Min Mat Fac DSF Fac Fac Upp Upp War Pro Fac Upp Upp Zhi Pro Res Qua Res Tes Sec Slots Evolved 16 | . . . 2 . . . 2 2 . 2 2 . . . . 2 . . . . 2 . 2 . . Power 1 | . . . . . . . . . . . 1 . . . . . . . . . . . . . . Propulsion 2 | . . . 2 . . . . . . . . . . . . . . . . . . . . . . Utility 12 | . . . . . . . 2 2 . 2 1 . . . . 1 . . . . 2 . 2 . . Weapon 1 | . . . . . . . . . . . . . . . . 1 . . . . . . . . . Parts Attached 433 | 9 9 3 48 9 1 16 21 3 15 63 29 11 2 12 6 58 . 2 8 1 26 13 49 6 13 Power 57 | 1 . . 7 . . 2 2 . . 6 4 1 1 2 . 10 . 2 1 . 1 . 13 . 4 Engine 19 | 1 . . 6 . . 1 . . . 5 3 . 1 . . . . . . . . . 2 . . Core 17 | . . . 1 . . 1 2 . . 1 1 1 . . . 3 . 2 1 . . . 4 . . Reactor 21 | . . . . . . . . . . . . . . 2 . 7 . . . . 1 . 7 . 4 Propulsion 114 | 4 4 . 20 1 . 1 6 1 1 10 9 2 1 2 2 14 . . 3 . 7 4 18 2 2 Treads . | . . . . . . . . . . . . . . . . . . . . . . . . . . Leg . | . . . . . . . . . . . . . . . . . . . . . . . . . . Wheel 4 | 4 . . . . . . . . . . . . . . . . . . . . . . . . . Hover 80 | . 4 . 5 . . . 2 1 1 10 9 2 1 2 2 14 . . 3 . 7 4 13 . . Flight 30 | . . . 15 1 . 1 4 . . . . . . . . . . . . . . . 5 2 2 Utility 136 | 2 . 1 8 3 . 4 5 . 4 24 11 5 . 3 4 17 . . 3 1 17 6 11 2 5 Device 73 | 1 . 1 1 3 . 3 . . . 12 4 4 . . 2 12 . . 1 1 11 5 7 2 3 Storage 7 | 1 . . 1 . . 1 1 . . 1 . . . . . 1 . . 1 . . . . . . Processor 27 | . . . . . . . 1 . . 3 5 1 . 1 1 4 . . . . 5 1 3 . 2 Hackware 14 | . . . 2 . . . 3 . 4 3 1 . . . . . . . . . . . 1 . . Protection 15 | . . . 4 . . . . . . 5 1 . . 2 1 . . . 1 . 1 . . . . Artifact . | . . . . . . . . . . . . . . . . . . . . . . . . . . Weapon 126 | 2 5 2 13 5 1 9 8 2 10 23 5 3 . 5 . 17 . . 1 . 1 3 7 2 2 Energy Gun 25 | 1 2 . . . . 3 . . . . 2 1 . 4 . 11 . . . . . . 1 . . Energy Cannon 5 | . . . 1 . 1 . . . . . . 2 . 1 . . . . . . . . . . . Ballistic Gun 26 | 1 2 1 3 1 . 3 4 1 1 5 . . . . . 2 . . . . . . 2 . . Ballistic Cannon 14 | . . . . . . . . . . 2 3 . . . . 1 . . . . 1 1 2 2 2 Launcher 50 | . 1 1 9 4 . 3 3 1 8 13 . . . . . 2 . . 1 . . 2 2 . . Special Weapon 6 | . . . . . . . 1 . 1 3 . . . . . 1 . . . . . . . . . Impact Weapon . | . . . . . . . . . . . . . . . . . . . . . . . . . . Slashing Weapon . | . . . . . . . . . . . . . . . . . . . . . . . . . . Piercing Weapon . | . . . . . . . . . . . . . . . . . . . . . . . . . . Special Melee Weapon . | . . . . . . . . . . . . . . . . . . . . . . . . . . Unidentified Prototypes 21 | . . . 2 1 . . . . . 2 1 . . 2 . 3 . . 4 . 2 1 . 2 1 Corrupted Parts 1 | . . . . . . . . . . 1 . . . . . . . . . . . . . . . System Corruption 7 | . . . . . . . . . . 7 . . . . . . . . . . . . . . . Parts Lost 112 | . 2 . 9 . . 5 9 . 2 16 9 1 . 1 . 17 . 1 . . 1 10 13 3 13 Power 14 | . . . 2 . . 1 1 . . 3 . . . . . 3 . . . . . 1 2 1 . Propulsion 38 | . 2 . 5 . . 2 4 . 1 2 5 1 . . . 4 . 1 . . . 3 3 2 3 Utility 39 | . . . 2 . . . 2 . . 7 2 . . 1 . 7 . . . . 1 3 4 . 10 Weapon 21 | . . . . . . 2 2 . 1 4 2 . . . . 3 . . . . . 3 4 . . Highest Loss Streak 7 | . 1 . 3 . . 5 5 . 1 4 2 1 . 1 . 4 . 1 . . 1 6 5 2 7 To Critical Strikes 2 | . . . . . . . . . . . 1 . . . . . . 1 . . . . . . . Average Slot Usage (%) 81 | . 99 85 91 92 77 82 56 65 61 78 86 91 94 99 99 84 73 69 80 93 92 78 77 61 45 Engine 2 | . 14 . 6 . . . 1 . . 5 5 2 2 1 . . . . . . . . 1 . . Core 2 | . . . 2 11 11 5 . . . . . 4 5 5 5 2 . 5 7 10 7 1 . . . Reactor 1 | . . . . . . . . . . . . . . 3 5 5 5 . . . 1 3 3 . 3 Hover 13 | . 22 28 10 . . . 1 3 . 12 15 19 20 23 23 20 21 16 18 21 19 18 13 . . Flight 6 | . . . 31 44 44 34 17 15 15 . . . . . . . . . . . . . 1 10 1 Device 7 | . 14 14 3 10 11 8 1 . . 7 5 4 5 5 5 8 10 10 12 14 15 10 6 4 2 Storage 4 | . 14 14 11 11 11 11 9 7 7 5 . . . . . 2 . . 2 5 . . . . . Processor 18 | . . . . . . . 3 7 5 2 21 34 35 35 35 31 26 26 26 26 32 32 37 39 23 Hackware 8 | . . . 4 . . . 8 15 20 28 19 12 11 10 5 3 . . . . . . 3 . . Protection 1 | . . . . . . . . . . 2 3 . . . 4 . . . 2 5 4 . . . . Energy Gun 2 | . 14 . . . . 8 1 . . . 3 . . 3 5 4 . . . . . . 2 . 8 Ballistic Gun 3 | . 13 14 7 3 . 6 9 7 7 5 . . . . . 1 . . . . . . 1 2 . Ballistic Cannon 2 | . . . . . . . . . . 1 5 5 5 5 5 3 5 5 5 5 4 5 3 4 1 Launcher 3 | . . 13 12 12 . 5 2 7 3 3 . . . . . . 5 5 5 5 4 3 . . . Naked Turns 17 | . . . . . . . . . . . . . . . . . . . . . . . . . 17 Heaviest Build 59 | 13 13 12 17 18 14 28 13 10 15 42 39 35 35 38 49 59 43 43 44 44 45 46 46 27 33 Greatest Support 70 | 26 20 12 20 19 19 19 14 10 10 49 40 39 39 44 46 46 44 44 44 44 46 60 50 29 70 Greatest Overweight (x) 3 | . 2 . 1 . . 1 1 . 1 1 2 . . . 1 1 . . . . . 1 1 . 3 Average Overweight (x) . | . . . . . . . . . . . . . . . . . . . . . . . . . . Largest Inventory Capacity 8 | 8 8 8 8 8 8 8 8 8 8 8 5 5 5 5 5 5 5 5 5 5 5 5 5 5 5 Average Capacity 6 | 7 8 8 8 8 8 8 8 8 8 7 5 5 5 5 5 5 5 5 5 5 5 5 5 5 5 Most Carried 8 | 5 8 8 8 8 8 8 8 8 8 8 5 5 5 5 5 5 5 5 5 5 5 5 5 5 5 Average Carried 5 | 2 7 7 7 7 7 7 7 8 7 7 4 4 4 4 5 4 5 4 4 4 4 4 4 4 4 Final Capacity 8 | 8 8 8 8 8 8 8 8 8 8 5 5 5 5 5 5 5 5 5 5 5 5 5 5 5 5 Final Carried 8 | 5 8 8 8 8 8 8 8 8 8 5 5 5 5 5 5 5 5 5 4 5 5 5 5 5 3 Class Distribution -------------------- 34% | Scavenger-Mutant 20% | Hacker-Mutant 13% | Mutant 10% | Scavenger-Scout 8% | Scout 4% | Sprinter Dominant Class ---------------- Mutant | -10/Materials Mutant | -10/Mines Scavenger-Mutant | -9/Materials Mutant | -9/Mines Sprinter | -9/Exiles Mutant | -8/Mines Mutant | -8/Materials Hacker-Mutant | -7/Factory Hacker-Mutant | -7/DSF Hacker-Mutant | -6/Factory Hacker-Mutant | -5/Factory Scavenger-Mutant | -5/Upper Caves Scavenger-Mutant | -5/Upper Caves Scavenger-Mutant | -5/Warlord Scavenger-Mutant | -4/Proximity Caves Scavenger-Scout | -4/Factory Scavenger-Mutant | -4/Upper Caves Scavenger-Mutant | -4/Upper Caves Scavenger-Mutant | -4/Zhirov Scavenger-Mutant | -3/Proximity Caves Scavenger-Mutant | -3/Research Scout | -3/Quarantine Scout | -2/Research Sprinter | -2/Testing Alien-Mutant | -2/Section 7 Resources | -11 -10 -10 -9 -9 -9 -8 -8 -7 -7 -6 -5 -5 -5 -5 -4 -4 -4 -4 -4 -3 -3 -3 -2 -2 -2 ----------- Run | Jun Mat Min Mat Min Exi Min Mat Fac DSF Fac Fac Upp Upp War Pro Fac Upp Upp Zhi Pro Res Qua Res Tes Sec Matter Collected 12440 | 302 177 151 1138 172 . 341 637 . 384 2086 815 236 170 356 114 1286 26 38 216 66 996 547 1743 21 422 Remotely 2995 | 108 177 15 219 147 . 278 . . . 1043 . . . . . . . . . . 468 540 . . . Salvage Created 11239 | 138 276 54 867 92 . 434 710 . 109 2003 684 66 51 430 60 2098 . 63 . 52 963 761 715 93 520 Parts 526 | 8 22 16 65 2 . 14 38 . 8 87 30 4 4 13 2 83 . 8 . 8 50 24 23 2 15 Haulers Intercepted 16 | . 1 . 6 . . . 2 . 1 . 1 . . . . 2 . . . . 2 . 1 . . Recyclers Shooed 9 | . . . . . . . 1 . . 6 . . . . . 1 . . . . 1 . . . . Parts Field Recycled . | . . . . . . . . . . . . . . . . . . . . . . . . . . Retrieved Matter . | . . . . . . . . . . . . . . . . . . . . . . . . . . Parts Self-Destructed 24 | . . . . . . . . . . . . 2 5 . 7 . . 4 . 6 . . . . . Prevented 3 | . . . . . . . . . . . . 1 2 . . . . . . . . . . . . Kills | -11 -10 -10 -9 -9 -9 -8 -8 -7 -7 -6 -5 -5 -5 -5 -4 -4 -4 -4 -4 -3 -3 -3 -2 -2 -2 ------- Run | Jun Mat Min Mat Min Exi Min Mat Fac DSF Fac Fac Upp Upp War Pro Fac Upp Upp Zhi Pro Res Qua Res Tes Sec Combat Hostiles Destroyed 225 | . 7 7 23 3 . 14 15 . 2 33 10 2 1 10 2 34 . 5 . 3 9 27 12 1 5 Guns 55 | . 5 . 2 . . 3 3 . . 8 1 . . 4 1 19 . . . . . . 3 1 5 Cannons 46 | . . . . . . . . . . 3 9 2 1 4 1 12 . 1 . 1 4 . 8 . . AOE 122 | . 2 7 21 3 . 11 12 . 2 21 . . . 2 . 3 . 4 . 2 5 27 . . . Classes Destroyed 25 | 2 5 . 5 . . . 2 . 2 2 . . . 2 2 . . . . . . 2 1 . . Worker 27 | . . . 3 . . . 3 . . 8 . . . . . 5 . . . . 8 . . . . Builder 13 | . . . . . . . 3 . . 4 . . . . . 6 . . . . . . . . . Tunneler 5 | 2 . 1 . . . . . . . . . . . . . . . . . . 2 . . . . Hauler 16 | . 1 . 6 . . . 2 . 1 . 1 . . . . 2 . . . . 2 . 1 . . Recycler 17 | 1 . . . . . 1 2 . . 5 1 . . . . 4 . . . . 3 . . . . Minesweeper 1 | . . . . . . . . . . . . . . . 1 . . . . . . . . . . Mechanic 5 | . . . 1 . . . . . . 1 . . . . . . . . . . 1 2 . . . Operator 14 | . 1 . 5 . . . 1 . . 4 2 . . . . . . . . . 1 . . . . Drone 2 | . . . . . . . . . . . . . . . 1 . . . . . . . 1 . . Watcher 16 | . 1 . 4 . . . 1 . . 2 . . . . . 2 . . . . 3 2 . . 1 Swarmer 38 | . 3 6 5 . . 2 . . . . . 1 . 2 . 4 . 5 . 3 3 4 . . . Cutter 2 | . . . . . . . . . . 2 . . . . . . . . . . . . . . . Saboteur 2 | . . . . . . . . . . . . . . . . . . . . . . 2 . . . Grunt 97 | . 4 1 10 3 . 10 12 . . 14 5 . . 5 . 14 . . . . . 11 4 . 4 Brawler 10 | . . . 2 . . 2 1 . . 1 . . . . . 1 . . . . . 2 1 . . Duelist 4 | . . . 1 . . . . . . 1 . . . . 1 . . . . . . 1 . . . Protector 4 | . . . . . . . . . . . . . . 1 . 1 . . . . . 2 . . . Sentry 22 | . . . 5 . . . 1 . . 7 1 . 1 . . 3 . . . . 1 . 1 1 1 Specialist 2 | . . . . . . . . . 1 1 . . . . . . . . . . . . . . . Hunter 9 | . . . . . . . 1 . . 2 2 . . . . 2 . . . . . 1 1 . . Programmer 28 | . . . . . . . . . 1 5 2 1 . . . 9 . . . . 5 3 2 . . Heavy 1 | . . . . . . . . . . 1 . . . . . . . . . . . . . . . Investigator 1 | . . . . . . . . . . . . . . . . . . . . . . 1 . . . Striker 1 | . . . . . . . . . . . . . . . . . . . . . . . 1 . . Executioner 4 | . . . . . . . . . . . . . . 2 . . . . . . . 1 1 . . Best Kill Streak 23 | 2 4 3 6 3 . 6 17 . 1 8 3 1 1 4 1 10 . 4 . 3 5 23 2 1 3 Combat Bots Only 20 | . 4 3 5 3 . 6 11 . 1 4 2 1 1 4 1 6 . 4 . 3 3 20 2 1 3 Max Kills in Single Turn 8 | 1 2 2 5 1 . 3 2 . 1 4 2 1 1 2 1 4 . 4 . 2 3 8 1 1 2 Gunslinging . | . . . . . . . . . . . . . . . . . . . . . . . . . . Exploded 6 | . 2 2 3 1 . 3 2 . 1 3 . . . 2 . 1 . 3 . 2 2 6 . . . Melee . | . . . . . . . . . . . . . . . . . . . . . . . . . . Uniques/NPCs Destroyed . | . . . . . . . . . . . . . . . . . . . . . . . . . . Combat | -11 -10 -10 -9 -9 -9 -8 -8 -7 -7 -6 -5 -5 -5 -5 -4 -4 -4 -4 -4 -3 -3 -3 -2 -2 -2 -------- Run | Jun Mat Min Mat Min Exi Min Mat Fac DSF Fac Fac Upp Upp War Pro Fac Upp Upp Zhi Pro Res Qua Res Tes Sec Damage Taken 14584 | . 241 146 602 63 . 397 768 . 193 2924 950 34 60 163 38 1714 . 177 . 120 309 1426 1441 573 2245 Core 3399 | . 70 28 203 7 . 110 205 . 24 444 93 17 . 74 17 243 . . . 57 23 341 236 164 1043 Absorbed by Shields 1054 | . . . . . . . . . . . . . . 137 . 479 . . . . 18 420 . . . Redirected to Shielding 96 | . . . 11 . . . . . . 34 12 . . 6 6 . . . . . 27 . . . . Regen/Repaired (Parts) 362 | . . . 35 . . . 181 . . . . . . 46 . 64 . . . . 36 . . . . Core Remaining (%) 66 | 100 . 60 . . . 20 62 . 96 47 . . . . 79 . . . . 73 . 58 . . . Volleys Fired 821 | 13 26 19 68 4 1 27 48 . 15 125 66 5 6 33 11 128 2 3 . 3 66 27 81 9 35 Largest 3 | 2 2 2 2 2 1 2 2 . 2 2 2 2 2 2 2 3 1 2 . 2 2 2 3 3 2 Hottest 203 | 70 70 53 89 50 120 98 76 . 64 79 122 147 147 102 102 181 66 115 . 115 115 114 203 149 200 Shots Fired 1309 | 26 52 27 122 9 1 44 81 . 20 184 102 8 7 47 13 229 2 6 . 6 79 34 137 16 57 Gun 624 | 26 51 19 49 4 . 29 57 . 9 101 29 . . 14 2 131 . . . . . . 54 6 43 Cannon 453 | . . . 3 . 1 . . . . 32 73 8 7 33 11 94 2 3 . 3 55 23 81 10 14 Launcher 227 | . 1 8 70 5 . 15 23 . 10 49 . . . . . 3 . 3 . 3 24 11 2 . . Special 5 | . . . . . . . 1 . 1 2 . . . . . 1 . . . . . . . . . Kinetic 783 | 13 25 19 49 4 . 13 50 . 9 127 74 5 4 33 11 125 2 3 . 3 55 23 106 16 14 Thermal 129 | 13 26 . . . 1 16 7 . . 6 . 3 3 . . 25 . . . . . . 29 . . Explosive 227 | . 1 8 70 5 . 15 23 . 10 49 . . . . . 3 . 3 . 3 24 11 2 . . Electromagnetic 31 | . . . 3 . . . . . . . 28 . . . . . . . . . . . . . . Slashing 43 | . . . . . . . . . . . . . . . . . . . . . . . . . 43 Entropic 91 | . . . . . . . . . . . . . . 14 2 75 . . . . . . . . . Robot Hit Streak 16 | 10 10 5 7 3 . 6 9 . 5 11 10 10 5 8 13 15 . 2 . 1 16 6 13 6 10 Robot Miss Streak 11 | 1 3 6 4 1 . 4 4 . 2 11 4 2 . 3 1 5 . 3 . 2 5 2 3 1 2 Penetration Max 3 | . . . . . . . . . . 3 1 . . 2 . 2 . . . . . . 1 . 1 Secondary Targets 2 | . . . . . . . . . . . . . . . . 1 . . . . . . . . 1 Max Gunslinging Chain 1 | . . . . . . . . . . . . . . . . 1 . . . . . . . . 1 Shots Hit Robots 799 | 19 36 9 65 5 . 20 51 . 9 117 65 4 3 27 11 156 . 2 . 2 45 14 99 11 29 Core Hits 695 | 4 17 12 73 7 . 31 56 . 14 135 31 2 2 20 4 104 . 6 . 3 37 87 35 3 12 Critical Kills 13 | . . . 1 . . . . . . 5 . . . . . 2 . 1 . 1 1 . 1 1 . Critical Parts Destroyed 30 | 2 . . . . . . . . . 13 . . . 1 . 10 . . . 1 . . 3 . . Critical Strikes 98 | 2 . . 1 . . . . . . 23 6 2 . 4 3 31 . 1 . 2 5 . 15 1 2 Destroy 40 | 2 . . 1 . . . . . . 21 . . . . . 7 . 1 . 2 1 . 4 1 . Blast 48 | . . . . . . . . . . 2 5 2 . 3 3 18 . . . . 4 . 11 . . Corrupt 1 | . . . . . . . . . . . 1 . . . . . . . . . . . . . . Sever 2 | . . . . . . . . . . . . . . . . . . . . . . . . . 2 Detonate 7 | . . . . . . . . . . . . . . 1 . 6 . . . . . . . . . Melee Attacks . | . . . . . . . . . . . . . . . . . . . . . . . . . . Impact . | . . . . . . . . . . . . . . . . . . . . . . . . . . Slashing . | . . . . . . . . . . . . . . . . . . . . . . . . . . Piercing . | . . . . . . . . . . . . . . . . . . . . . . . . . . Sneak Attacks . | . . . . . . . . . . . . . . . . . . . . . . . . . . Combat Hostiles . | . . . . . . . . . . . . . . . . . . . . . . . . . . Follow-up Attacks . | . . . . . . . . . . . . . . . . . . . . . . . . . . Damage Inflicted 46790 | 248 548 554 3370 262 . 1203 2785 . 697 6147 2169 110 112 1694 380 7851 . 607 . 267 3449 7919 3903 348 2167 Guns 11358 | 248 427 55 219 25 . 178 409 . 71 962 404 . . 636 44 4342 . . . . . . 1128 131 2079 Cannons 11035 | . . . 22 . . . . . . 705 1760 110 112 687 336 2479 . 14 . 35 1570 293 2607 217 88 Explosions 24383 | . 121 499 3129 237 . 1025 2376 . 626 4471 . . . 371 . 1030 . 593 . 232 1879 7626 168 . . Melee . | . . . . . . . . . . . . . . . . . . . . . . . . . . Ramming 14 | . . . . . . . . . . 9 5 . . . . . . . . . . . . . . Kinetic 14411 | 125 183 55 219 25 . 53 352 . 71 1611 1760 75 112 687 336 3286 . 14 . 35 1570 293 3113 348 88 Thermal 3106 | 123 244 . . . . 125 57 . . 230 . 35 . 371 . 1299 . . . . . . 622 . . Explosive 22859 | . 121 499 3129 237 . 1025 2376 . 626 4239 . . . . . 109 . 593 . 232 1879 7626 168 . . Electromagnetic 484 | . . . 22 . . . . . . 58 404 . . . . . . . . . . . . . . Impact . | . . . . . . . . . . . . . . . . . . . . . . . . . . Slashing 2079 | . . . . . . . . . . . . . . . . . . . . . . . . . 2079 Piercing . | . . . . . . . . . . . . . . . . . . . . . . . . . . Entropic 3837 | . . . . . . . . . . . . . . 636 44 3157 . . . . . . . . . Highest Corruption 18 | . . . 1 1 1 1 . . . 18 1 1 1 1 . 2 . . . . 3 3 4 4 4 Average Corruption 4 | . . . 1 1 1 1 . . . 13 1 1 1 1 . 1 . . . . 2 2 1 4 4 Corruption Purged 2 | . . . . . . . . . . . . . . . . 2 . . . . . . . . . Corruption Blocked 8 | . . . . . . . . . . 8 . . . . . . . . . . . . . . . Effects 92 | . . . 2 2 1 4 . . . 46 . 3 2 . . 7 . . . . 1 2 4 4 14 Message Errors 27 | . . . . . . 1 . . . 17 . 2 . . . 1 . . . . . . 2 1 3 Matter Fused 20 | . . . . 1 1 . . . . 9 . . 1 . . 2 . . . . . . 1 1 4 Heat Flow Errors 9 | . . . . . . . . . . 4 . . 1 . . 1 . . . . . 1 . . 2 Energy Discharges 7 | . . . . . . 1 . . . 2 . 1 . . . . . . . . 1 . . . 2 Parts Rejected 5 | . . . . . . . . . . 3 . . . . . 2 . . . . . . . . . Parts Fused 3 | . . . . . . . . . . 2 . . . . . . . . . . . . . . 1 Data Loss (minor) 13 | . . . 2 . . 2 . . . 6 . . . . . 1 . . . . . . . 2 . Data Loss (major) 1 | . . . . . . . . . . 1 . . . . . . . . . . . . . . . Misfires 3 | . . . . 1 . . . . . . . . . . . . . . . . . 1 . . 1 Alerts 1 | . . . . . . . . . . . . . . . . . . . . . . . 1 . . Weapon Failures 3 | . . . . . . . . . . 2 . . . . . . . . . . . . . . 1 Overload Shots . | . . . . . . . . . . . . . . . . . . . . . . . . . . Overflow Damage 1140 | . 2 33 50 . . . 51 . 2 59 27 . . 56 25 93 . 89 . . 137 441 71 . 4 Projectiles 333 | . . . . . . . . . . 43 27 . . . 25 72 . . . . 70 21 71 . 4 Explosions 807 | . 2 33 50 . . . 51 . 2 16 . . . 56 . 21 . 89 . . 67 420 . . . Melee . | . . . . . . . . . . . . . . . . . . . . . . . . . . Knockbacks 56 | . . . . . . . . . . 2 9 . . 5 4 13 . . . 1 12 1 8 . 1 Impact 1 | . . . . . . . . . . . 1 . . . . . . . . . . . . . . Kinetic 52 | . . . . . . . . . . 2 8 . . 4 3 13 . . . 1 11 1 8 . 1 Secondary 3 | . . . . . . . . . . . . . . 1 1 . . . . . 1 . . . . Self-Inflicted Damage 690 | . . 82 156 41 . 71 38 . 6 152 2 . . . . . . . . 37 45 60 . . . Shots 26 | . . 3 6 1 . 2 1 . 1 6 . . . . . . . . . 1 3 2 . . . Rammed 6 | . . . . . . . . . . 5 1 . . . . . . . . . . . . . . Targets Rammed 6 | . . . . . . . . . . 5 1 . . . . . . . . . . . . . . Kicked . | . . . . . . . . . . . . . . . . . . . . . . . . . . Crushed . | . . . . . . . . . . . . . . . . . . . . . . . . . . Highest Temperature 361 | 90 70 12 89 43 86 276 81 . . 233 304 203 142 . . 361 30 99 . 101 100 231 316 . 162 Average Temperature 62 | 38 25 6 17 17 34 137 27 . . 49 79 101 36 . . 104 18 38 . 53 18 145 78 . 66 Received Heat Transfer 2584 | . 108 . 225 9 . 216 270 . . 552 171 . 12 . 21 313 . 42 . . 9 249 36 63 288 Effects 5 | . . . . . . 3 . . . . 1 . . . . 1 . . . . . . . . . Shutdowns 1 | . . . . . . . . . . . . . . . . 1 . . . . . . . . . Interference 3 | . . . . . . 3 . . . . . . . . . . . . . . . . . . . Matter Decay 1 | . . . . . . . . . . . 1 . . . . . . . . . . . . . . Siege Activations . | . . . . . . . . . . . . . . . . . . . . . . . . . . Robots Corrupted . | . . . . . . . . . . . . . . . . . . . . . . . . . . Combat Hostiles . | . . . . . . . . . . . . . . . . . . . . . . . . . . Parts Fried 3 | . . . . . . . . . . . 2 . . . . . . . . . . . 1 . . Impact Corruptions . | . . . . . . . . . . . . . . . . . . . . . . . . . . Robots Melted . | . . . . . . . . . . . . . . . . . . . . . . . . . . Combat Hostiles . | . . . . . . . . . . . . . . . . . . . . . . . . . . Parts Melted 8 | . 3 . . . . . 1 . . 1 1 . . 1 . 1 . . . . . . . . . Heat Transferred 4215 | 370 586 . . . . 296 148 . . 322 . 37 . 250 . 1442 . . . . . . 764 . . Parts Sabotaged 3 | . . . . . . . . . . . . . . . . . . . . . . 3 . . . Parts Stolen . | . . . . . . . . . . . . . . . . . . . . . . . . . . Parts Stripped . | . . . . . . . . . . . . . . . . . . . . . . . . . . Power Chain Reactions 1 | . . . . . . . . . . 1 . . . . . . . . . . . . . . . Missiles Intercepted . | . . . . . . . . . . . . . . . . . . . . . . . . . . Alert | -11 -10 -10 -9 -9 -9 -8 -8 -7 -7 -6 -5 -5 -5 -5 -4 -4 -4 -4 -4 -3 -3 -3 -2 -2 -2 ------- Run | Jun Mat Min Mat Min Exi Min Mat Fac DSF Fac Fac Upp Upp War Pro Fac Upp Upp Zhi Pro Res Qua Res Tes Sec Peak Influence 3092 | 15 209 452 1361 644 . 355 851 379 495 1840 1051 . . . . 1591 . . . . 1058 3092 2497 1719 2164 Initial 1733 | . 9 81 103 528 . . 62 364 265 259 896 . . . . 300 . . . . 57 594 1733 1404 1100 Average 910 | 5 90 259 888 551 . 240 358 372 377 906 916 . . . . 908 . . . . 694 1987 2041 1622 1895 Maximum Alert Level 5 | . 1 2 4 2 . 1 3 1 2 5 3 . . . . 4 . . . . 3 5 5 5 5 Low Security (%) 12 | 100 86 25 3 . . 51 55 . . 5 . . . . . . . . . . 4 . . . . Level 1 17 | . 13 63 9 . . 48 2 100 55 26 . . . . . 26 . . . . 16 . . . . Level 2 11 | . . 11 15 100 . . 11 . 44 7 . . . . . 13 . . . . 24 . . . . Level 3 26 | . . . 33 . . . 30 . . 26 100 . . . . 16 . . . . 55 . . . . Level 4 11 | . . . 37 . . . . . . 13 . . . . . 42 . . . . . . . . . Level 5 4 | . . . . . . . . . . 21 . . . . . . . . . . . . 17 . . High Security 5 | . . . . . . . . . . . . . . . . . . . . . . . 82 . . Max Security 9 | . . . . . . . . . . . . . . . . . . . . . . 99 . 99 99 Squads Dispatched 122 | . 3 . 4 . . . 4 . 1 20 10 . . . . 12 . . . . 10 12 1 10 35 Investigation 10 | . 1 . . . . . 1 . . 3 3 . . . . 1 . . . . . . 1 . . Extermination 9 | . . . . . . . . . . 2 1 . . . . 4 . . . . 2 . . . . Reinforcement 30 | . 2 . 3 . . . 3 . 1 9 5 . . . . 2 . . . . 3 . . . 2 Assault 58 | . . . 1 . . . . . . 1 1 . . . . 4 . . . . 2 12 . 7 30 Garrison 15 | . . . . . . . . . . 5 . . . . . 1 . . . . 3 . . 3 3 Intercept . | . . . . . . . . . . . . . . . . . . . . . . . . . . Searches Triggered . | . . . . . . . . . . . . . . . . . . . . . . . . . . Construction Impeded 6 | . . . 1 . . . . . . 3 1 . . . . . . . . . 1 . . . . Haulers Reinforced 4 | . . . . . . . . . . . 2 . . . . 1 . . . . 1 . . . . Active Scanning Responses . | . . . . . . . . . . . . . . . . . . . . . . . . . . Cargo Convoy Interrupts 2 | . . . . . . . . . . 1 1 . . . . . . . . . . . . . . Stealth | -11 -10 -10 -9 -9 -9 -8 -8 -7 -7 -6 -5 -5 -5 -5 -4 -4 -4 -4 -4 -3 -3 -3 -2 -2 -2 --------- Run | Jun Mat Min Mat Min Exi Min Mat Fac DSF Fac Fac Upp Upp War Pro Fac Upp Upp Zhi Pro Res Qua Res Tes Sec Distress Signals 34 | . . 1 1 . . . 3 . 1 4 2 . . 1 1 2 . . . . 1 1 13 2 1 Communications Jammed 120 | . . . . . . . . . . 3 2 . . . . . . . . . . 33 82 . . Distress Signals 117 | . . . . . . . . . . 3 2 . . . . . . . . . . 33 79 . . Times Spotted 708 | . 12 11 43 6 . 14 38 . 5 64 42 1 5 35 4 71 . 11 . 8 18 87 85 19 129 Peak Tracking Total 23 | . 5 3 7 15 . 5 9 . 2 5 9 1 4 9 3 11 . 5 . 5 4 23 21 16 18 Tactical Retreats 47 | . . 1 . . . . 2 . . 3 6 . . . . 11 . 3 . 1 2 3 13 2 . Traps | -11 -10 -10 -9 -9 -9 -8 -8 -7 -7 -6 -5 -5 -5 -5 -4 -4 -4 -4 -4 -3 -3 -3 -2 -2 -2 ------- Run | Jun Mat Min Mat Min Exi Min Mat Fac DSF Fac Fac Upp Upp War Pro Fac Upp Upp Zhi Pro Res Qua Res Tes Sec Traps Triggered 3 | . 1 . . . . . . . 2 . . . . . . . . . . . . . . . . Indirectly . | . . . . . . . . . . . . . . . . . . . . . . . . . . Trap Hack Attempts . | . . . . . . . . . . . . . . . . . . . . . . . . . . Triggered . | . . . . . . . . . . . . . . . . . . . . . . . . . . Disarmed 6 | . 6 . . . . . . . . . . . . . . . . . . . . . . . . Reprogrammed . | . . . . . . . . . . . . . . . . . . . . . . . . . . Reused 3 | . . 3 . . . . . . . . . . . . . . . . . . . . . . . Traps Extracted . | . . . . . . . . . . . . . . . . . . . . . . . . . . Installed 13 | . . 3 . . . . . . . . . . . . 10 . . . . . . . . . . Triggered 13 | . . 3 . . . . . . . 1 . . 3 6 . . . . . . . . . . . Most Traps Carried 2 | . . 2 . . . . . . . . . . . . . . . . . . . . . . . Machines | -11 -10 -10 -9 -9 -9 -8 -8 -7 -7 -6 -5 -5 -5 -5 -4 -4 -4 -4 -4 -3 -3 -3 -2 -2 -2 ---------- Run | Jun Mat Min Mat Min Exi Min Mat Fac DSF Fac Fac Upp Upp War Pro Fac Upp Upp Zhi Pro Res Qua Res Tes Sec Machines Disabled 71 | . . 3 11 3 . . 2 . 2 19 4 . . . . 3 . . . . 4 9 . . 11 Max in Single Turn 4 | . . 2 2 2 . . 1 . 1 4 1 . . . . 1 . . . . 1 3 . . 1 Garrison Access 1 | . . . . . . . . . . . 1 . . . . . . . . . . . . . . Machines Repaired . | . . . . . . . . . . . . . . . . . . . . . . . . . . Machines Sabotaged . | . . . . . . . . . . . . . . . . . . . . . . . . . . Overloaded Fab Kills . | . . . . . . . . . . . . . . . . . . . . . . . . . . Hacking | -11 -10 -10 -9 -9 -9 -8 -8 -7 -7 -6 -5 -5 -5 -5 -4 -4 -4 -4 -4 -3 -3 -3 -2 -2 -2 --------- Run | Jun Mat Min Mat Min Exi Min Mat Fac DSF Fac Fac Upp Upp War Pro Fac Upp Upp Zhi Pro Res Qua Res Tes Sec Machines Accessed 114 | . 5 . 12 1 5 . 10 2 . 21 8 . 1 10 . 12 . . 9 . 16 . 2 . . Terminals 55 | . 5 . 8 . . . 8 2 . 10 4 . . . . 6 . . . . 10 . 2 . . Fabricators 9 | . . . . . . . . . . 5 3 . . . . 1 . . . . . . . . . Repair Stations 9 | . . . 1 . . . 2 . . 1 . . . . . 3 . . . . 2 . . . . Recycling Units 4 | . . . 1 . . . . . . 2 . . . . . . . . . . 1 . . . . Scanalyzers 8 | . . . 2 . . . . . . 2 . . . . . 2 . . . . 2 . . . . Garrison Access 3 | . . . . . . . . . . 1 1 . . . . . . . . . 1 . . . . Total Hacks 371 | . 15 . 37 1 50 . 42 9 . 53 20 . 1 27 . 37 . . 48 . 27 . 4 . . Successful 245 | . 6 . 25 1 50 . 25 6 . 24 9 . 1 27 . 15 . . 48 . 7 . 1 . . Failed 126 | . 9 . 12 . . . 17 3 . 29 11 . . . . 22 . . . . 20 . 3 . . Catastrophic 27 | . 2 . 2 . . . 1 . . 6 4 . . . . 5 . . . . 6 . 1 . . Database Lockouts . | . . . . . . . . . . . . . . . . . . . . . . . . . . Manual 63 | . 1 . 10 . 1 . 14 6 . 9 5 . . . . 9 . . . . 8 . . . . Terminals 147 | . 15 . 22 . . . 33 9 . 21 8 . . . . 18 . . . . 17 . 4 . . Fabricators 24 | . . . . . . . . . . 12 10 . . . . 2 . . . . . . . . . Repair Stations 33 | . . . 5 . . . 9 . . 3 . . . . . 11 . . . . 5 . . . . Recycling Units 11 | . . . 5 . . . . . . 5 . . . . . . . . . . 1 . . . . Scanalyzers 23 | . . . 5 . . . . . . 9 . . . . . 6 . . . . 3 . . . . Garrison Access 6 | . . . . . . . . . . 3 2 . . . . . . . . . 1 . . . . Terminal Hacks 184 | . 6 . 13 1 50 . 17 6 . 4 2 . 1 27 . 5 . . 48 . 3 . 1 . . Record 106 | . . . . . 49 . . . . . . . . 20 . . . . 36 . 1 . . . . Part Schematic 4 | . . . . . . . . . . . . . . . . . . . 4 . . . . . . Robot Schematic 2 | . . . . . . . . . . 2 . . . . . . . . . . . . . . . Robot Analysis 17 | . . . 4 . . . 7 2 . . . . . . . . . . 4 . . . . . . Prototype ID Bank 18 | . 1 . 2 . . . 4 1 . . . . . 6 . . . . 4 . . . . . . Open Door 4 | . . . . 1 . . . . . . . . 1 1 . . . . . . 1 . . . . Open DSF 4 | . . . . . . . . 1 . . . . . . . 2 . . . . 1 . . . . Level Access Points 1 | . . . . . . . 1 . . . . . . . . . . . . . . . . . . Branch Access Points 3 | . . . 1 . . . . . . . 1 . . . . 1 . . . . . . . . . Terminal Index 5 | . . . 1 . . . 1 1 . . . . . . . 1 . . . . . . 1 . . Fabricator Index 1 | . . . . . . . . . . . . . . . . 1 . . . . . . . . . Alert Level 1 | . . . . . . . 1 . . . . . . . . . . . . . . . . . . Unreport Threat 3 | . . . 1 . . . . . . 1 1 . . . . . . . . . . . . . . Locate Traps 1 | . 1 . . . . . . . . . . . . . . . . . . . . . . . . Disarm Traps 1 | . 1 . . . . . . . . . . . . . . . . . . . . . . . . Dispatch Records 1 | . . . . . . . 1 . . . . . . . . . . . . . . . . . . Transport Status 1 | . 1 . . . . . . . . . . . . . . . . . . . . . . . . Reinforcement Status 1 | . 1 . . . . . . . . . . . . . . . . . . . . . . . . Zone Layout 9 | . 1 . 4 . . . 2 1 . 1 . . . . . . . . . . . . . . . EX-Prototype ID Bank 1 | . . . . . 1 . . . . . . . . . . . . . . . . . . . . Fabricator Hacks 15 | . . . . . . . . . . 7 6 . . . . 2 . . . . . . . . . Network Status 1 | . . . . . . . . . . 1 . . . . . . . . . . . . . . . Load Schematic 7 | . . . . . . . . . . 3 3 . . . . 1 . . . . . . . . . Build 7 | . . . . . . . . . . 3 3 . . . . 1 . . . . . . . . . Repair Station Hacks 23 | . . . 4 . . . 8 . . 2 . . . . . 6 . . . . 3 . . . . Scan Component 13 | . . . 2 . . . 4 . . 1 . . . . . 4 . . . . 2 . . . . Repair 9 | . . . 2 . . . 4 . . . . . . . . 2 . . . . 1 . . . . Refit 1 | . . . . . . . . . . 1 . . . . . . . . . . . . . . . Recycling Unit Hacks 6 | . . . 3 . . . . . . 3 . . . . . . . . . . . . . . . Process 2 | . . . 1 . . . . . . 1 . . . . . . . . . . . . . . . Report Inventory 2 | . . . 1 . . . . . . 1 . . . . . . . . . . . . . . . Retrieve Matter 1 | . . . 1 . . . . . . . . . . . . . . . . . . . . . . Retrieve Components 1 | . . . . . . . . . . 1 . . . . . . . . . . . . . . . Scanalyzer 16 | . . . 5 . . . . . . 8 . . . . . 2 . . . . 1 . . . . Insert Component 9 | . . . 2 . . . . . . 4 . . . . . 2 . . . . 1 . . . . Analyze 7 | . . . 3 . . . . . . 4 . . . . . . . . . . . . . . . Garrison Access Hacks 1 | . . . . . . . . . . . 1 . . . . . . . . . . . . . . Seal Access 1 | . . . . . . . . . . . 1 . . . . . . . . . . . . . . Unauthorized Hacks . | . . . . . . . . . . . . . . . . . . . . . . . . . . Terminals . | . . . . . . . . . . . . . . . . . . . . . . . . . . Fabricators . | . . . . . . . . . . . . . . . . . . . . . . . . . . Repair Stations . | . . . . . . . . . . . . . . . . . . . . . . . . . . Recycling Units . | . . . . . . . . . . . . . . . . . . . . . . . . . . Scanalyzers . | . . . . . . . . . . . . . . . . . . . . . . . . . . Garrison Access . | . . . . . . . . . . . . . . . . . . . . . . . . . . Data Cores Recovered . | . . . . . . . . . . . . . . . . . . . . . . . . . . Used . | . . . . . . . . . . . . . . . . . . . . . . . . . . Hacking Detections 76 | . 5 . 12 . . . 9 1 . 16 7 . . . . 10 . . . . 14 . 2 . . Full Trace Events 11 | . . . 2 . . . 1 . . 3 3 . . . . 1 . . . . . . 1 . . Feedback Events 2 | . . . 2 . . . . . . . . . . . . . . . . . . . . . . Corruption 1 | . . . 1 . . . . . . . . . . . . . . . . . . . . . . Hackware Fried 1 | . . . 1 . . . . . . . . . . . . . . . . . . . . . . Feedback Blocked . | . . . . . . . . . . . . . . . . . . . . . . . . . . Robot Schematics Acquired 2 | . . . . . . . . . . 2 . . . . . . . . . . . . . . . Robots Built 11 | . . . . . . . . . . 4 5 . . . . 2 . . . . . . . . . Authchips 1 | . . . . . . . . . . 1 . . . . . . . . . . . . . . . Time 513 | . . . . . . . . . . 111 268 . . . . 134 . . . . . . . . . Total Robot Build Rating 44 | . . . . . . . . . . 16 20 . . . . 8 . . . . . . . . . Part Schematics Acquired 10 | . . . 2 . . . . . . 4 . . . . . . . . 4 . . . . . . Parts Built 1 | . . . . . . . . . . 1 . . . . . . . . . . . . . . . Authchips . | . . . . . . . . . . . . . . . . . . . . . . . . . . Time 76 | . . . . . . . . . . 76 . . . . . . . . . . . . . . . Total Part Build Rating 5 | . . . . . . . . . . 5 . . . . . . . . . . . . . . . Parts Repaired 9 | . . . 2 . . . 4 . . . . . . . . 2 . . . . 1 . . . . Time 391 | . . . 89 . . . 153 . . . . . . . . 106 . . . . 43 . . . . Parts Recycled . | . . . . . . . . . . . . . . . . . . . . . . . . . . Recycled Matter 261 | . . . 55 . . . . . . 206 . . . . . . . . . . . . . . . Retrieved Matter 55 | . . . 55 . . . . . . . . . . . . . . . . . . . . . . Retrieved Components 10 | . . . . . . . . . . 10 . . . . . . . . . . . . . . . Parts Scanalyzed 8 | . . . 2 . . . . . . 4 . . . . . 2 . . . . . . . . . Part Schematics Acquired 6 | . . . 2 . . . . . . 4 . . . . . . . . . . . . . . . Parts Damaged . | . . . . . . . . . . . . . . . . . . . . . . . . . . Bothacking | -11 -10 -10 -9 -9 -9 -8 -8 -7 -7 -6 -5 -5 -5 -5 -4 -4 -4 -4 -4 -3 -3 -3 -2 -2 -2 ------------ Run | Jun Mat Min Mat Min Exi Min Mat Fac DSF Fac Fac Upp Upp War Pro Fac Upp Upp Zhi Pro Res Qua Res Tes Sec Used RIF Installer . | . . . . . . . . . . . . . . . . . . . . . . . . . . Robots Hacked . | . . . . . . . . . . . . . . . . . . . . . . . . . . Non-combat . | . . . . . . . . . . . . . . . . . . . . . . . . . . Combat . | . . . . . . . . . . . . . . . . . . . . . . . . . . Robot Hacks Applied . | . . . . . . . . . . . . . . . . . . . . . . . . . . Relay Couplers Released 3 | . . . . . . . . . . 3 . . . . . . . . . . . . . . . Programmers 3 | . . . . . . . . . . 3 . . . . . . . . . . . . . . . Fabnet Peak Effective % . | . . . . . . . . . . . . . . . . . . . . . . . . . . Robots Rewired 6 | . . . . . . . . . . . 1 . . 5 . . . . . . . . . . . Allies Hacked . | . . . . . . . . . . . . . . . . . . . . . . . . . . Hacks Repelled . | . . . . . . . . . . . . . . . . . . . . . . . . . . Allies | -11 -10 -10 -9 -9 -9 -8 -8 -7 -7 -6 -5 -5 -5 -5 -4 -4 -4 -4 -4 -3 -3 -3 -2 -2 -2 -------- Run | Jun Mat Min Mat Min Exi Min Mat Fac DSF Fac Fac Upp Upp War Pro Fac Upp Upp Zhi Pro Res Qua Res Tes Sec Total Allies 27 | . . 3 . . . . 1 . 1 6 6 . 2 5 . 3 . . . . . . . . . Largest Group 5 | . . 3 2 . . . 1 1 2 5 2 . 2 5 5 5 . . . . . . . . . Highest-Rated Group 316 | . . 40 32 . . . 90 90 180 218 64 . 51 293 293 316 . . . . . . . . . Highest-Rated Ally 137 | . . 16 16 . . . 90 90 90 90 49 . 31 65 65 137 . . . . . . . . . Total Orders 37 | . . . . 1 . 1 . . 2 15 1 . . 4 4 8 . . . . . . 1 . . STAY 19 | . . . . . . . . . 1 6 1 . . 3 3 5 . . . . . . . . . FOLLOW 10 | . . . . . . . . . 1 4 . . . 1 1 3 . . . . . . . . . AID 1 | . . . . . . . . . . 1 . . . . . . . . . . . . . . . EXPLORE 7 | . . . . 1 . 1 . . . 4 . . . . . . . . . . . . 1 . . Ally Attacks 270 | . . 10 50 . . . 22 . 15 85 18 . 2 18 15 35 . . . . . . . . . Total Damage 8573 | . . 100 565 . . . 899 . 656 2581 636 . . 536 489 2111 . . . . . . . . . Kills 63 | . . 2 10 . . . 10 . 3 16 5 . . 1 3 13 . . . . . . . . . Allies Corrupted 1 | . . . . . . . . . . . . . . . . 1 . . . . . . . . . Allies Melted 2 | . . . . . . . . . . . . . . . . . . 1 . . . . 1 . . Field Lobotomies 5 | . . . . . . . 1 . 1 2 . . . . . 1 . . . . . . . . . Intel | -11 -10 -10 -9 -9 -9 -8 -8 -7 -7 -6 -5 -5 -5 -5 -4 -4 -4 -4 -4 -3 -3 -3 -2 -2 -2 ------- Run | Jun Mat Min Mat Min Exi Min Mat Fac DSF Fac Fac Upp Upp War Pro Fac Upp Upp Zhi Pro Res Qua Res Tes Sec Robot Analysis Total 17 | . . . 4 . . . 7 2 . . . . . . . . . . 4 . . . . . . Derelict Logs Recovered 7 | . . 1 . 1 . . . . . . . 1 1 . 1 . 1 1 . . . . . . . Drone Launches 60 | . . . . 20 . 19 . . . 19 . . . . . . . . . . . . 2 . . Drone Recoveries 55 | . . . . 19 . 18 . . . 17 . . . . . . . . . . . . 1 . . Decoded 0b10 Intel 16 | . . . . . . . . . . . . . . . . 16 . . . . . . . . . Traps 6 | . . . . . . . . . . . . . . . . 6 . . . . . . . . . Emergency Access 10 | . . . . . . . . . . . . . . . . 10 . . . . . . . . . Exploration | -11 -10 -10 -9 -9 -9 -8 -8 -7 -7 -6 -5 -5 -5 -5 -4 -4 -4 -4 -4 -3 -3 -3 -2 -2 -2 ------------- Run | Jun Mat Min Mat Min Exi Min Mat Fac DSF Fac Fac Upp Upp War Pro Fac Upp Upp Zhi Pro Res Qua Res Tes Sec Turns Passed 13857 | 88 292 498 984 247 150 428 996 58 229 1846 964 263 312 654 473 1663 158 157 95 91 1272 283 830 134 692 Spaces Moved 17611 | 36 270 702 1391 271 456 466 917 99 248 1831 1038 423 367 794 517 1734 321 275 169 200 2156 474 1089 328 1039 Core 311 | 5 . . . . . . . . . . . . . . . . . . . . . . . . 306 Treads . | . . . . . . . . . . . . . . . . . . . . . . . . . . Legs 386 | . . . . . . . . . . . . . . . . . . . . . . . . . 386 Wheels 76 | 31 45 . . . . . . . . . . . . . . . . . . . . . . . . Hover 12586 | . 225 702 586 . . . 12 . 1 1755 1038 423 367 794 517 1734 321 275 169 200 2156 474 837 . . Flight 4252 | . . . 805 271 456 466 905 99 247 76 . . . . . . . . . . . . 252 328 347 Fastest Speed 19 | 50 56 56 31 31 31 31 34 34 34 34 48 48 48 48 48 48 48 48 40 40 35 27 35 21 19 Average Speed 46 | 86 64 56 42 31 31 36 37 34 34 55 58 50 49 48 50 51 48 51 45 40 37 38 45 29 46 Slowest Speed 200 | 100 180 56 120 31 31 103 120 34 109 106 180 56 52 48 105 111 48 52 52 40 43 92 126 35 200 Overloaded Moves 109 | . . . . . . . . . . . . . . . . . . . . . . 61 . 9 39 Propulsion Burnouts 1 | . . . . . . . . . . . . . . . . . . . . . . . . . 1 Robots Hopped 44 | . . . 10 6 . 4 12 2 . . . . . . . . . . . . . . 1 5 4 Cave-ins Triggered 1 | . . . . . . . . . . 1 . . . . . . . . . . . . . . . Teleports 4 | . . . . . . . . . . . . . . . . . . . . . . 2 . . 2 Exploration Rate (%) 58 | 5 58 97 85 97 90 97 61 3 95 48 24 73 49 84 67 32 59 58 63 39 45 70 29 46 58 Regions Visited 25 Branch Regions 15 Pre-discovered Areas 9 | . . . . 1 1 . . . . . . 1 1 1 . . . 1 3 . . . . . . Known Exits Taken 15 | . . . 1 . . . 1 1 . 1 1 . . . 1 1 1 1 1 1 1 1 1 1 . Unknown Exits Taken 9 | 1 1 1 . 1 1 1 . . . . . 1 1 1 . . . . . . . . . . . Scrap Searched 14 | . . 2 . 1 . . . . . . . 5 1 . 3 . 1 . . 1 . . . . . Spaces Dug 50 | . . 12 . . . . . . . . 9 . 1 . . 8 . . . . 4 9 1 1 5 Terrain Destroyed 2437 | . 3 85 459 26 . 117 85 . 96 497 27 6 2 35 9 192 . 67 . 56 444 163 49 5 14 Melee . | . . . . . . . . . . . . . . . . . . . . . . . . . . Projectile 242 | . . . . . . . . . . 5 27 6 2 25 9 107 . . . . 12 13 17 5 14 AOE 2195 | . 3 85 459 26 . 117 85 . 96 492 . . . 10 . 85 . 67 . 56 432 150 32 . . Terrain Rammed . | . . . . . . . . . . . . . . . . . . . . . . . . . . Walls Destroyed . | . . . . . . . . . . . . . . . . . . . . . . . . . . Machines Disabled . | . . . . . . . . . . . . . . . . . . . . . . . . . . Actions | -11 -10 -10 -9 -9 -9 -8 -8 -7 -7 -6 -5 -5 -5 -5 -4 -4 -4 -4 -4 -3 -3 -3 -2 -2 -2 --------- Run | Jun Mat Min Mat Min Exi Min Mat Fac DSF Fac Fac Upp Upp War Pro Fac Upp Upp Zhi Pro Res Qua Res Tes Sec Total 22041 | 62 336 789 1660 421 466 678 1491 120 369 2466 1295 464 488 1022 712 2298 322 286 185 204 2537 536 1296 344 1194 Wait 2644 | . 19 40 116 135 . 163 493 19 46 385 124 12 113 107 165 326 . . 1 . 259 6 34 . 81 Move 17505 | 35 269 701 1371 259 455 457 893 94 247 1830 1037 422 366 793 516 1733 320 274 168 199 2155 473 1086 319 1033 Hop 37 | . . . 9 5 . 4 11 2 . . . . . . . . . . . . . . 1 3 2 Pick Up 129 | 4 6 9 16 . 3 2 11 . 1 18 12 5 1 4 . 10 . 2 3 . 6 2 9 . 5 Fast Attach 239 | 7 4 . 17 4 1 7 9 3 6 29 17 5 1 7 4 27 . 1 5 . 15 10 38 5 17 Attach 109 | . 2 . 12 1 . 5 11 . 5 21 6 3 1 1 . 20 . 1 1 . 1 5 6 1 6 Detach 87 | . 2 1 7 3 . 5 6 . 7 11 4 3 . 1 1 18 . 2 . . 3 2 5 2 4 Swap 101 | 2 3 3 19 4 . 4 1 . 4 13 6 3 . 4 2 11 . . 3 1 10 2 5 . 1 Drop 239 | 1 5 11 25 6 6 4 8 2 2 29 14 6 . 13 3 25 . 3 4 1 22 5 31 5 8 Fire 821 | 13 26 19 68 4 1 27 48 . 15 125 66 5 6 33 11 128 2 3 . 3 66 27 81 9 35 Melee . | . . . . . . . . . . . . . . . . . . . . . . . . . . Ram 6 | . . . . . . . . . . 5 1 . . . . . . . . . . . . . . Kick . | . . . . . . . . . . . . . . . . . . . . . . . . . . Crush . | . . . . . . . . . . . . . . . . . . . . . . . . . . Escape Stasis 40 | . . . . . . . . . 36 . . . . . . . . . . . . 4 . . . Rewire 71 | . . 2 . . . . . . . . 8 . . 59 . . . . . . . . . . 2 Trap 13 | . . 3 . . . . . . . . . . . . 10 . . . . . . . . . . Miscellaneous . | . . . . . . . . . . . . . . . . . . . . . . . . . . Route ------- -11/Junkyard -10/Materials (discovered 3 exits: *Mat x2 / [*Min]) -10/Mines (discovered 2 exits: *Mat x2) -9/Materials (discovered 5 exits: *Mat x3 / *Min x2) -9/Mines (discovered 4 exits: *Mat x2 / *Exi / [*Zio]) -9/Exiles -8/Mines (discovered 2 exits: *Mat x2) -8/Materials (discovered 3 exits: *Fac x3) -7/Factory -7/DSF -6/Factory (discovered 3 exits: *Fac x2 / [*Low]) -5/Factory (discovered 3 exits: *Fac / *Upp x2) -5/Upper Caves -5/Upper Caves -5/Warlord -4/Proximity Caves -4/Factory (discovered 4 exits: *Res / *Upp x2 / Arm) -4/Upper Caves -4/Upper Caves -4/Zhirov -3/Proximity Caves -3/Research (discovered 3 exits: *Res x2 / *Qua) -3/Quarantine -2/Research (discovered 2 exits: *Acc / *Tes) -2/Testing (discovered 2 exits: *Acc / *Sec) -2/Section 7 History --------- Turn | Location | Event 23 | -11/Junkyard | Discovered new exit (range 15) 89 | -11/Junkyard | Entered Materials 178 | -10/Materials | Discovered new exit (range 9) 262 | -10/Materials | Discovered new exit (range 14) 308 | -10/Materials | Build established: Mutant 363 | -10/Materials | Discovered new exit (range 9) 381 | -10/Materials | Entered Mines 403 | -10/Mines | Received a Rocket Launcher from a helpful Derelict 477 | -10/Mines | Found a hidden stash of uninstalled traps 531 | -10/Mines | Discovered new exit (range 11) 647 | -10/Mines | Discovered new exit (range 9) 690 | -10/Mines | Assisted by bots powering up and referring to "LRC-V3" 701 | -10/Mines | Learned Materials stockpile data 879 | -10/Mines | Entered Materials 879 | -9/Materials | Accompanied by 2 allies 879 | -9/Materials | Evolved 2 slots: Propulsion x2 1075 | -9/Materials | Discovered new exit (range 16) 1156 | -9/Materials | Discovered new exit (range 10) 1156 | -9/Materials | Identified exit to Mines 1178 | -9/Materials | Build established: Scavenger-Mutant 1398 | -9/Materials | Lost 3 parts (2n1u) 1423 | -9/Materials | Discovered new exit (range 15) 1454 | -9/Materials | Hacking Suite fried by hacking feedback 1679 | -9/Materials | First assault squad dispatched 1730 | -9/Materials | Repaired Imp. Flight Unit 1759 | -9/Materials | Core integrity fell below 50% 1816 | -9/Materials | Repaired Hacking Suite 1863 | -9/Materials | Entered Mines 1864 | -9/Mines | A Derelict revealed a hidden shortcut to a safe place 1864 | -9/Mines | Discovered new exit (range 9) 1897 | -9/Mines | Found the Drone Emporium 1904 | -9/Mines | Found Prototype Device 1904 | -9/Mines | Identified Sensor Drone Bay 1976 | -9/Mines | Discovered new exit (range 66) 2102 | -9/Mines | Assembled infested the area 2102 | -9/Mines | Learned location of Storage (-7) 2109 | -9/Mines | Deemed a non-threat by the Exiles lab entrance 2109 | -9/Mines | Discovered new exit (range 5) 2110 | -9/Mines | Entered Exiles 2119 | -9/Exiles | Met 8R-AWN 2124 | -9/Exiles | Met EX-HEX 2134 | -9/Exiles | Met EX-BIN 2137 | -9/Exiles | Aligned with FarCom system 2138 | -9/Exiles | Given EX-Vault access code 2150 | -9/Exiles | Opened EX-Vault 2152 | -9/Exiles | Found Gui. Plasma Cannon 2157 | -9/Exiles | Found Field Lobotomy Kit 2179 | -9/Exiles | Warned to stay clear of 0b10 Research branches 2206 | -9/Exiles | Met EX-DEC 2214 | -9/Exiles | Visited The Gauntlet 2248 | -9/Exiles | Learned location of Zion (-7) 2257 | -9/Exiles | Discovered new exit (range 14) 2260 | -9/Exiles | Left Exiles lab with Field Lobotomy Kit 2260 | -9/Exiles | Entered Mines 2409 | -8/Mines | Discovered new exit (range 60) 2519 | -8/Mines | Lost 5 parts (1p2n2w) 2606 | -8/Mines | Build established: Mutant 2648 | -8/Mines | Discovered new exit (range 10) 2688 | -8/Mines | Entered Materials 2688 | -8/Materials | Evolved 2 slots: Utility x2 2899 | -8/Materials | Lost 5 parts (1p2n1u1w) 2913 | -8/Materials | Repaired Minigun 2940 | -8/Materials | Repaired Flight Unit 3200 | -8/Materials | Identified exit to Factory 3232 | -8/Materials | Assimilated H-61 Shepherd with FLK Orb 3303 | -8/Materials | Lost 3 parts (1n1u1w) 3308 | -8/Materials | Destroyed 11 combat bots 3514 | -8/Materials | Repaired Imp. Flight Unit 3562 | -8/Materials | Repaired Lgt. Nuclear Core 3684 | -8/Materials | Entered Factory 3684 | -7/Factory | Accompanied by 1 ally 3684 | -7/Factory | Evolved 2 slots: Utility x2 3741 | -7/Factory | Identified exit to DSF 3742 | -7/Factory | Entered DSF 3742 | -7/DSF | Accompanied by 1 ally 3750 | -7/DSF | Assimilated H-61 Shepherd with FLK Orb 3757 | -7/DSF | Additional patrols routed to DSF 3821 | -7/DSF | Discovered new exit (range 16) 3949 | -7/DSF | Build established: Hacker-Mutant 3971 | -7/DSF | Entered Factory 3971 | -6/Factory | Accompanied by 1 ally 3971 | -6/Factory | Evolved 2 slots: Utility x2 4595 | -6/Factory | Found Launcher Loader 4730 | -6/Factory | System corruption reached 10% 4943 | -6/Factory | Discovered new exit (range 13) 5001 | -6/Factory | Fabricated Y-54 Guardian? 5096 | -6/Factory | Discovered new exit (range 7) 5096 | -6/Factory | Assimilated H-61 Shepherd with FLK Orb 5192 | -6/Factory | Fabricated Y-54 Guardian? 5290 | -6/Factory | Lost 4 parts (1p2u1w) 5339 | -6/Factory | Cargo convoy interrupted 5408 | -6/Factory | Fabricated Scatter Rocket Array? 5489 | -6/Factory | Discovered new exit (range 4) 5509 | -6/Factory | Crushed by falling debris 5532 | -6/Factory | Garrison activated, responded to threat 5585 | -6/Factory | Assimilated H-61 Shepherd with FLK Orb 5678 | -6/Factory | Lost 4 parts (1n2u1w) 5721 | -6/Factory | First assault squad dispatched 5767 | -6/Factory | Lost 4 parts (1p1n1u1w) 5801 | -6/Factory | Garrison activated, responded to threat 5810 | -6/Factory | Core integrity fell below 50% 5814 | -6/Factory | Identified exit to Factory 5817 | -6/Factory | Entered another Factory area 5817 | -5/Factory | Evolved 2 slots: Power x1, Utility x1 6023 | -5/Factory | Identified exit to Upper Caves 6137 | -5/Factory | Discovered new exit (range 13) 6232 | -5/Factory | Identified exit to Factory 6417 | -5/Factory | First assault squad dispatched 6468 | -5/Factory | Build established: Scavenger-Mutant 6483 | -5/Factory | Fabricated I-36 Angel? 6536 | -5/Factory | Spotted B-75 Beast 6677 | -5/Factory | Fabricated Y-54 Guardian? 6734 | -5/Factory | Cargo convoy interrupted 6755 | -5/Factory | Fabricated Y-54 Guardian? 6781 | -5/Factory | Entered Upper Caves 6949 | -5/Upper Caves | Learned location of Warlord (-5) 7033 | -5/Upper Caves | Discovered new exit (range 16) 7044 | -5/Upper Caves | Entered another Upper Caves area 7078 | -5/Upper Caves | A Commander dispatched an escort 7152 | -5/Upper Caves | Attracted the attention of an 0b10 checkpoint 7320 | -5/Upper Caves | Discovered new exit (range 18) 7356 | -5/Upper Caves | Entered Warlord 7356 | -5/Warlord | Accompanied by 2 allies 7357 | -5/Warlord | Commander's escort returned to base 7357 | -5/Warlord | Commander's escort returned to base 7373 | -5/Warlord | System corruption cleaned by Quarantine Array 7401 | -5/Warlord | Learned location of Armory (-4) 7401 | -5/Warlord | Learned 4 Armory zone layouts 7401 | -5/Warlord | Learned Armory security intel 7401 | -5/Warlord | Learned Research terminal intel 7401 | -5/Warlord | Learned Research fabricator intel 7510 | -5/Warlord | Met Warlord 7535 | -5/Warlord | Warlord's base attacked by MAIN.C 7561 | -5/Warlord | Found Prototype Energy Gun 7561 | -5/Warlord | Identified Vortex Rail 7564 | -5/Warlord | Found Vortex Rail 7567 | -5/Warlord | Found Prototype Energy Gun 7567 | -5/Warlord | Identified Vortex Shotgun 7885 | -5/Warlord | Warlord forces counterattacked 7897 | -5/Warlord | Spotted Executioner 7911 | -5/Warlord | Destroyed Executioner 7944 | -5/Warlord | Spotted Striker 7972 | -5/Warlord | Spotted Executioner 7978 | -5/Warlord | Discovered new exit (range 15) 7984 | -5/Warlord | Destroyed Executioner 8010 | -5/Warlord | Entered Proximity Caves 8010 | -4/Proximity Caves | Accompanied by 5 allies 8079 | -4/Proximity Caves | Learned Research terminal intel 8187 | -4/Proximity Caves | Spotter reported a threat 8228 | -4/Proximity Caves | Spotter reported a threat 8405 | -4/Proximity Caves | Discovered exit to Factory (range 8) 8483 | -4/Proximity Caves | Entered Factory 8483 | -4/Factory | Accompanied by 5 allies 8483 | -4/Factory | Evolved 2 slots: Utility x1, Weapon x1 8503 | -4/Factory | Found Prototype Processor 8503 | -4/Factory | Identified Exp. Terrain Scan Processor 8578 | -4/Factory | Repaired Antigrav System 8630 | -4/Factory | Repaired Imp. Gravmag System 8793 | -4/Factory | Build established: Scavenger-Scout 8838 | -4/Factory | Identified exit to DSF 8881 | -4/Factory | Identified exit to DSF 9077 | -4/Factory | P-70 Sage assimilated allied Archangel 6c 9103 | -4/Factory | Assimilated H-71 Marshal with FLK Orb 9133 | -4/Factory | Lost 3 parts (1n1u1w) 9483 | -4/Factory | First assault squad dispatched 9618 | -4/Factory | Garrison activated, responded to threat 9664 | -4/Factory | Found Quantum Capacitor 9667 | -4/Factory | Lost 4 parts (1p1n2w) 9670 | -4/Factory | Discovered new exit (range 21) 9773 | -4/Factory | Lost 4 parts (1p1n2u) 9785 | -4/Factory | Spotted B-86 Titan 9833 | -4/Factory | Identified exit to Upper Caves 9833 | -4/Factory | Identified exit to Armory 9932 | -4/Factory | Found Launcher Loader 9959 | -4/Factory | Fabricated Y-54 Guardian? 9992 | -4/Factory | Found Prototype Launcher 9992 | -4/Factory | Identified Tesla Bomb Launcher 9996 | -4/Factory | Found Faulty Tesla Bomb Launcher 10146 | -4/Factory | Entered Upper Caves 10256 | -4/Upper Caves | Encountered a Warlord checkpoint 10282 | -4/Upper Caves | Learned Research trap positions 10289 | -4/Upper Caves | Discovered new exit (range 9) 10292 | -4/Upper Caves | Identified exit to Upper Caves 10304 | -4/Upper Caves | Entered another Upper Caves area 10334 | -4/Upper Caves | Attracted the attention of an 0b10 checkpoint 10375 | -4/Upper Caves | Learned location of Testing (-2) 10397 | -4/Upper Caves | Build established: Scavenger-Mutant 10453 | -4/Upper Caves | Discovered new exit (range 17) 10461 | -4/Upper Caves | Identified exit to Zhirov 10461 | -4/Upper Caves | Entered Zhirov 10461 | -4/Zhirov | Discovered new exit (range 3) 10471 | -4/Zhirov | Met Zhirov 10490 | -4/Zhirov | Found Alien Artifact 10490 | -4/Zhirov | Identified Integrated Reactor 10490 | -4/Zhirov | Installed Integrated Reactor, increased core energy generation (+10) 10527 | -4/Zhirov | Found Alien Artifact 10538 | -4/Zhirov | Learned location of Quarantine (-3) 10538 | -4/Zhirov | Learned location of Command (-1) 10545 | -4/Zhirov | Zhirov requested help retrieving the SGEMP Prototype 10555 | -4/Zhirov | Identified exit to Proximity Caves 10556 | -4/Zhirov | Entered Proximity Caves 10640 | -3/Proximity Caves | Discovered new exit (range 20) 10647 | -3/Proximity Caves | Identified exit to Research 10647 | -3/Proximity Caves | Entered Research 10647 | -3/Research | Evolved 2 slots: Utility x2 10648 | -3/Research | Loaded intel: 84 trap records 10649 | -3/Research | Loaded intel: 24 terminal locations 10650 | -3/Research | Loaded intel: 3 fabricator locations 10823 | -3/Research | Spotted B-86 Titan 10961 | -3/Research | Repaired Broken Imp. Phase Shifter 11226 | -3/Research | Discovered new exit (range 7) 11228 | -3/Research | Identified exit to Research 11249 | -3/Research | Spotted B-86 Titan 11295 | -3/Research | Identified Transdimensional Reconstructor 11397 | -3/Research | First assault squad dispatched 11496 | -3/Research | Build established: Scavenger-Scout 11578 | -3/Research | Discovered exit to Research (range 10) 11879 | -3/Research | Build established: Scout 11888 | -3/Research | Found Prototype Device 11888 | -3/Research | Identified Adv. Kinecellerator 11916 | -3/Research | Discovered new exit (range 9) 11918 | -3/Research | Identified exit to Quarantine 11919 | -3/Research | Entered Quarantine 11920 | -3/Quarantine | Maximum security lockdown engaged 11975 | -3/Quarantine | Found Alien Artifact 11975 | -3/Quarantine | Identified Core Reset Matrix 11975 | -3/Quarantine | Used Core Reset Matrix 11979 | -3/Quarantine | Detected hypermatrix surge 11979 | -3/Quarantine | Sensed 10 artifacts in vicinity 12042 | -3/Quarantine | Found Transdimensional Reconstructor 12049 | -3/Quarantine | Warped through subspace 12050 | -3/Quarantine | Warped through subspace 12081 | -3/Quarantine | Lost 4 parts (1n3u) 12111 | -3/Quarantine | Found Unknown Launcher 12111 | -3/Quarantine | Identified Fusion Bomb Launcher 12113 | -3/Quarantine | Discovered exit to Research (range 7) 12140 | -3/Quarantine | Found Subatomic Replicator 12142 | -3/Quarantine | Used Subatomic Replicator to replicate Cld. Gravmag System 12170 | -3/Quarantine | Spotted Executioner 12172 | -3/Quarantine | Spotted Investigator 12172 | -3/Quarantine | Spotted Executioner 12172 | -3/Quarantine | Destroyed Investigator 12172 | -3/Quarantine | Destroyed Executioner 12199 | -3/Quarantine | Destroyed 20 combat bots 12202 | -3/Quarantine | Entered Research 12202 | -2/Research | Warlord forces began assault on 0b10 12202 | -2/Research | Evolved 2 slots: Utility x2 12232 | -2/Research | Lost 6 parts (1p2n3w) 12248 | -2/Research | Spotted B-90 Cyclops 12253 | -2/Research | Found Unknown Device 12253 | -2/Research | Identified Quantum Capacitor 12312 | -2/Research | Research machine network offline 12344 | -2/Research | High security lockdown imminent 12424 | -2/Research | High security lockdown engaged 12458 | -2/Research | Met up with Warlord 12458 | -2/Research | Spotted Striker 12465 | -2/Research | Discovered new exit (range 20) 12498 | -2/Research | Identified exit to Access 12527 | -2/Research | Borebot progress halted 12568 | -2/Research | Discovered new exit (range 19) 12577 | -2/Research | Identified exit to Testing 12617 | -2/Research | Spotted Striker 12617 | -2/Research | Spotted Executioner 12622 | -2/Research | Borebot progress halted 12622 | -2/Research | Spotted Executioner 12626 | -2/Research | Spotted Executioner 12626 | -2/Research | Spotted Investigator 12637 | -2/Research | Borebot progress halted 12783 | -2/Research | Spotted Executioner 12786 | -2/Research | Warlord destroyed during the assault 12840 | -2/Research | Spotted Striker 12842 | -2/Research | Spotted Striker 12869 | -2/Research | Destroyed Striker 12894 | -2/Research | Destroyed Executioner 12923 | -2/Research | Lost 4 parts (1p2n1w) 12944 | -2/Research | Spotted Executioner 13032 | -2/Research | Entered Testing 13033 | -2/Testing | Maximum security lockdown engaged 13035 | -2/Testing | Lost 5 parts (1n2u2w) 13086 | -2/Testing | Discovered exit to Access (range 21) 13122 | -2/Testing | Spotted PY-1GWQXKQYGC 13147 | -2/Testing | Spotted Fortress 13165 | -2/Testing | Discovered new exit (range 6) 13166 | -2/Testing | Identified exit to Section 7 13166 | -2/Testing | Entered Section 7 13167 | -2/Section 7 | Maximum security lockdown engaged 13167 | -2/Section 7 | Sensed 26 artifacts in vicinity 13172 | -2/Section 7 | Found Integrated Reactor 13172 | -2/Section 7 | Installed Integrated Reactor, increased core energy generation (+10) 13195 | -2/Section 7 | Spotted S7 Guard 13198 | -2/Section 7 | Found Core Membrane 13198 | -2/Section 7 | Installed Core Membrane, gained immunity to corruption 13209 | -2/Section 7 | Spotted S7 Guard 13213 | -2/Section 7 | Found Navigation Efficiency Matrix 13213 | -2/Section 7 | Installed Navigation Efficiency Matrix, process failed with unexpected side effects 13245 | -2/Section 7 | Spotted Alpha 7 13261 | -2/Section 7 | Garrison activated, responded to threat 13284 | -2/Section 7 | Spotted Alpha 7 13291 | -2/Section 7 | Core integrity fell below 50% 13300 | -2/Section 7 | Spotted B-99 Colossus 13323 | -2/Section 7 | Lost 7 parts (3n4u) 13396 | -2/Section 7 | Found Matter Drive 13432 | -2/Section 7 | Found Transdimensional Reconstructor 13437 | -2/Section 7 | Found Transdimensional Reconstructor 13506 | -2/Section 7 | Spotted Striker 13506 | -2/Section 7 | Spotted Striker 13507 | -2/Section 7 | Build established: Alien-Mutant 13515 | -2/Section 7 | Spotted Executioner 13516 | -2/Section 7 | Spotted Executioner 13568 | -2/Section 7 | Core integrity fell below 20% 13598 | -2/Section 7 | Integrated with Sigix Exoskeleton 13605 | -2/Section 7 | Lost 4 parts (4u) 13672 | -2/Section 7 | Found Integrated Reactor 13672 | -2/Section 7 | Installed Integrated Reactor, increased core energy generation (+10) 13673 | -2/Section 7 | Found Integrated Reactor 13673 | -2/Section 7 | Installed Integrated Reactor, increased core energy generation (+10) 13675 | -2/Section 7 | Found Integrated Reactor 13675 | -2/Section 7 | Installed Integrated Reactor, increased core energy generation (+10) 13703 | -2/Section 7 | Found LRC Energy Well 13703 | -2/Section 7 | Installed LRC Energy Well, increased energy storage capacity (+250) 13705 | -2/Section 7 | Found LRC Insulator 13705 | -2/Section 7 | Installed LRC Insulator, gained EM resistance (25) 13708 | -2/Section 7 | Found LRC Boosters 13708 | -2/Section 7 | Installed LRC Boosters, increased mass support (+10) 13801 | -2/Section 7 | Warped through subspace 13808 | -2/Section 7 | Spotted Executioner 13813 | -2/Section 7 | Spotted Executioner 13827 | -2/Section 7 | Warped through subspace 13858 | -2/Section 7 | Spotted Striker 13858 | -2/Section 7 | Destroyed by H-81 Overseer with Heavy Linear Accelerator Last Messages --------------- 13853_ M-36 Artificer unfolds itself. 13853_ C-30 ARC bursts open, deploying its payload. 13853_ G-73 Enforcer unfolds itself. 13853_ L-61 Swordsman unfolds itself. 13853_ G-73 Enforcer unfolds itself. 13853_ I-47 Archangel unfolds itself. 13855_ Knocked back. 13855_ Acquired 9 matter. 13855_ Knocked back. 13855_ C-57 Dissector knocked back. 13856_ Knocked back. 13857_ Sigix Exoskeleton reveals location of hidden door. 13858_ C-30 ARC bursts open, deploying its payload. 13858_ P-80 Master unfolds itself. 13858_ H-88 Terminator unfolds itself. 13858_ Striker unfolds itself. 13858_ M-36 Artificer unfolds itself. 13858_ Penetrated by Slug. [Achievement: 40k Club] [Achievement: 50k Club] Map ----- +----------------------------------------------------+ | ############# # " # """"""" # ??????####T | | ############# # """# """"""" + T" ???? | | "############ # """# """"""" # " ??? | | ################## """# #* ????####### | | ############# # """# ## ????####### | | ######""" # # """# ]## #?? #### | | ######"""" # # = """###+####"### ?? #### | | ###"" + + " ### "" ### + [[[ #### | | ###"""" # # ! " ####### # [[ #### | | "##""" # " # %==" # [[ #### | | ###"" # "%"# [ # # #### | | ###" # " ##"##### #################### | | ########## gg ## ## #####"T"############# | | ########## ## "" ## # ########### | | " g ## """ ## # ########### | | "%" l## "R ## + ########### | | " ## """ # # ########### | | ## """ ## #####+############### | | # ##### ############### | | * ###+############### | | % = ! ####### | | ]!%H # * ####### | | ######## cKc == # """""" ####### | | "" ###### c#### ## """""""" ""##### | | " ####### ## p # """""" ""##### | | "" ###### h/m"""X ] T"##### | | ####### ### """ # """""" ""##### | | "" ####### " ### """ % !!# """""""" ""##### | | " ####### """#### ![# """""" ####### | | "" ####### """#### # [####### | | ####### """#### = # ####### | | + """#### # ####### | | #+######### """############+##### # ######### | | #### """## # C | | "" #### " ## # | | """" #### ## """# | | "" #?#####Y#### """# o C | | """" " #??######### """# ###### #### | | """""""#???######## """# C## # ###### | | ########?????###### """# #Y !# ###### | | ??????????????##### """# ## """ # ###### | | ?????????????????## """# ## " " + ###### | | ?????????????????????? ??# ## """ #% ###### | | ?????????????????????????# ## # ###### | | ?????????????????????????# ?# # #??### | | ?????????????????????????# ?# * # #????# | | ?????????????????????????# ?# # #???## | | ????????????????????????? ?# "" "" #" #??### | | ????????????????????????? ?# ""G""]/%" #??### | | ????????????????????????? ?#########" #?#### | +----------------------------------------------------+ Best States ------------- Heat Dissipation 138 Energy Generation 117 Energy Capacity 720 Matter Stores 550 Matter Capacity 550 Sight Range 22 Robot Scan Range 16 Terrain Scan Density 10 ECM Strength 2 Jamming Range 14 Additional Mass Support 9 Armor Coverage 225 Resistance: KI 50 Resistance: TH 50 Resistance: EX 50 Resistance: EM 75 Resistance: I 50 Resistance: S 50 Resistance: P 50 Core Shielding 30 Power Shielding 90 Propulsion Shielding 33 Utility Shielding 66 Phase Shifting 10 Evasion (%) 80 Targeting Accuracy 24 Target Analysis 9 Recoil Reduction 6 Matter Filtering 30 Energy Filtering 30 Particle Charging 15 Kinecelleration 50 Salvage Targeting 9 Offensive Hacking 22 Defensive Hacking 30 Authchip Count 4 Item Schematics ----------------- None Robot Schematics ------------------ None Fabricated ------------ Y-54 Guardian | x2 | -6/Factory | Authchip Y-54 Guardian | x2 | -6/Factory Scatter Rocket Array | x1 | -6/Factory | Preloaded I-36 Angel | x1 | -5/Factory Y-54 Guardian | x2 | -5/Factory Y-54 Guardian | x2 | -5/Factory Y-54 Guardian | x2 | -4/Factory Alien Tech Used ----------------- Integrated Reactor Core Reset Matrix Transdimensional Reconstructor Subatomic Replicator Core Membrane Navigation Efficiency Matrix Matter Drive Sigix Exoskeleton Sigix Sheargun LRC Energy Well LRC Insulator LRC Boosters Achievements -------------- 40k Club 50k Club Alien Roots Killing Spree More Power To You Most Wanted Turtlemind Ultimate Loadout Challenges ------------ None Game ------ Seed HardcellMeleeSpoofer Manual? 0 Play Time 06:21:05 Cumulative 94.6 hours Start 2024.01.24 @ 01:48:17 End 2024.01.24 @ 08:23:45 Sessions 1 Manual Loads 0 Difficulty Rogue Special Mode None Game No. 53 Rogue 53 Adventurer 0 Explorer 0 Win Type - Total 0 Types 0/0/0/0/0/0/0/0/0 Lore% 56 Gallery% 56 Achievement% 48 Wizard Run 0 Options --------- ASCII 0 Keyboard 1 Movement Arrows Keybinds 0 Fullscreen 1 Font 12/Proggy Map View 83x54 Tactical HUD 1 Map Filters NONE Filters NONE Steam 0 RUN: 0c2b3277-eee1-461f-af66-0e711ba45ab6